bitfinex-derivatives/quotes_ETHF0:USTF0_20251006
["timestamp","ask_amount","ask_price","bid_price","bid_amount"]
[1759758995548,3.4268,4631.6,4631.5,0.6903]
[1759758995842,3.4268,4631.6,4631.5,0.9617]
[1759758996049,4.1495,4631.6,4631.5,0.6903]
[1759758996550,0.7227,4631.5,4631.1,0.38851]
[1759758996746,0.38851,4631.2,4631.0,0.00213285]
[1759758996947,0.219,4631.1,4631.0,0.72143285]
[1759758997750,0.9417,4631.1,4631.0,0.00213285]
[1759758997951,4.1495,4631.1,4631.0,0.00213285]
[1759758998450,0.7227,4631.1,4631.0,0.00213285]
[1759758998748,0.7227,4631.8,4631.2,0.3885]
[1759758999053,0.219,4631.7,4631.0,0.27353285]
[1759758999347,0.38848,4631.6,4631.5,0.7193]
[1759758999547,0.219,4631.7,4631.6,0.7193]
[1759758999748,0.38847,4631.7,4631.6,0.7193]
[1759759000054,1.33017,4631.7,4631.6,0.7193]
[1759759000256,1.11118,4631.6,4631.4,1.10779]
[1759759000550,0.219,4631.5,4631.4,1.10778]
[1759759001062,0.219,4631.5,4631.2,0.7193]
[1759759001256,0.2739,4632.5,4632.0,0.2714]
[1759759001257,0.219,4632.5,4632.0,0.2714]
[1759759001458,0.219,4632.5,4632.4,0.7193]
[1759759001760,3.2078,4633.3,4632.7,0.38838]
[1759759001951,0.38836,4633.0,4632.8,0.7193]
[1759759002150,0.219,4632.9,4632.8,0.38837]
[1759759002354,0.00217575,4633.4,4633.3,0.7193]
[1759759002561,0.22117575,4633.4,4633.3,0.7193]
[1759759002763,0.00217575,4633.4,4633.3,0.7193]
[1759759003454,0.00217575,4633.4,4633.3,5.7193]
[1759759004858,0.00217575,4633.4,4633.3,46.5193]
[1759759005560,0.219,4634.4,4633.5,0.2714]
[1759759005757,0.7227,4634.9,4634.7,0.7193]
[1759759006061,0.7227,4634.9,4634.8,0.38821]
[1759759006263,0.7227,4634.8,4634.7,0.7193]
[1759759006557,0.22154258,4634.8,4634.7,0.0024868]
[1759759006956,3.42934258,4634.8,4634.7,0.0024868]
[1759759007259,4.15204258,4634.8,4634.7,0.0024868]
[1759759007452,0.7227,4633.6,4633.0,3.4792]
[1759759007655,0.219,4633.5,4633.4,0.7193]
[1759759007856,3.4268,4633.9,4633.8,0.6485]
[1759759008059,4.51758,4633.9,4633.2,0.6485]
[1759759008466,3.4268,4633.9,4633.2,0.65047328]
[1759759008666,0.7025,4634.6,4633.7,0.6485]
[1759759008859,3.2078,4634.7,4634.0,0.2672]
[1759759009060,0.219,4634.6,4634.5,1.03672]
[1759759009253,3.2078,4634.7,4634.5,1.03672]
[1759759009455,0.219,4634.6,4634.5,0.6485]
[1759759009658,3.2078,4634.7,4634.5,0.6485]
[1759759009855,0.60722,4634.6,4634.4,0.6485]
[1759759010056,0.7025,4634.5,4634.4,0.6485]
[1759759010263,0.219,4634.6,4634.5,0.6485]
[1759759010465,0.9215,4634.6,4634.0,0.6485]
[1759759010661,0.2641,4634.5,4633.1,40.8]
[1759759010863,0.38829,4633.8,4633.6,0.3883]
[1759759011065,0.7025,4633.7,4633.6,0.3883]
[1759759011259,0.219,4633.8,4633.4,0.38832]
[1759759011561,0.219,4633.8,4633.2,0.00197328]
[1759759011562,0.38832,4633.5,4633.3,0.6485]
[1759759011763,0.219,4633.4,4633.3,0.6485]
[1759759012558,3.2078,4633.8,4633.5,0.38831]
[1759759012764,0.219,4633.7,4633.6,0.6485]
[1759759013466,0.38832,4633.5,4633.4,0.6485]
[1759759014369,0.219,4633.7,4633.2,0.00197328]
[1759759014370,0.7025,4633.6,4633.2,0.00197328]
[1759759014672,0.219,4633.7,4633.2,0.00197328]
[1759759014962,0.38837,4632.8,4632.3,0.6485]
[1759759015167,0.38841,4632.4,4632.3,0.6485]
[1759759015568,0.60741,4632.4,4632.3,0.6485]
[1759759015963,1.30991,4632.4,4632.3,0.00177885]
[1759759016171,4.51771,4632.4,4632.3,0.00177885]
[1759759016358,9.51771,4632.4,4632.3,0.00177885]
[1759759016763,9.51771,4632.4,4631.3,0.6485]
[1759759016764,0.3885,4631.3,4631.1,1.03701]
[1759759016972,0.9215,4631.3,4630.7,0.38854]
[1759759017271,0.9215,4631.3,4630.6,40.8]
[1759759017467,0.9215,4631.3,4630.9,0.6485]
[1759759017668,0.22170099,4631.3,4630.9,0.65078787]
[1759759017868,0.22170099,4631.3,4631.2,0.6485]
[1759759017869,0.00270099,4631.3,4631.2,0.6485]
[1759759018974,0.22170099,4631.3,4631.2,0.6485]
[1759759019372,3.2078,4632.8,4631.2,8.8563]
[1759759019576,3.2078,4632.8,4632.2,0.6485]
[1759759019872,0.219,4632.9,4631.6,0.6485]
[1759759019873,0.38846,4631.8,4631.6,0.6485]
[1759759020068,0.60746,4631.8,4631.7,0.6485]
[1759759020272,0.38848,4631.6,4631.4,0.6485]
[1759759020477,0.0022345,4631.6,4631.5,0.6485]
[1759759020663,3.2078,4632.8,4631.5,5.9157]
[1759759020864,3.2078,4632.8,4632.7,0.6485]
[1759759021270,3.4268,4632.8,4632.7,0.6485]
[1759759021966,0.22118957,4632.8,4632.7,0.6485]
[1759759022167,0.00218957,4632.8,4632.7,41.4485]
[1759759022368,3.2078,4633.3,4632.7,41.4485]
[1759759022369,3.2078,4634.0,4633.6,1.0368]
[1759759022562,0.60728,4633.9,4633.8,0.6485]
[1759759022763,0.219,4633.9,4633.8,0.6485]
[1759759023368,0.22127734,4633.9,4633.8,0.6485]
[1759759024583,0.7025,4633.8,4633.1,0.6485]
[1759759024772,0.38834,4633.3,4632.7,40.8]
[1759759025080,3.2078,4633.4,4632.7,40.8]
[1759759025081,0.7025,4633.1,4632.7,0.6485]
[1759759025382,0.38837,4632.8,4632.7,0.6485]
[1759759025676,0.219,4632.8,4632.5,0.2672]
[1759759025882,0.38838,4632.8,4632.5,0.2672]
[1759759026080,0.38838,4632.8,4632.6,0.6485]
[1759759026272,0.219,4632.7,4632.6,1.03689]
[1759759026471,3.2078,4633.4,4632.6,1.03689]
[1759759026672,0.219,4633.3,4632.6,1.03689]
[1759759026976,0.219,4633.2,4632.6,0.6485]
[1759759027174,0.219,4633.1,4633.0,0.65555]
[1759759027375,3.2078,4633.4,4633.2,0.38834]
[1759759027575,0.219,4633.3,4633.2,0.38834]
[1759759027977,0.219,4633.3,4633.2,1.03684]
[1759759028277,3.2078,4634.0,4633.7,0.3883]
[1759759028574,3.2078,4634.0,4633.6,0.6485]
[1759759028575,0.39055734,4633.9,4633.8,0.6485]
[1759759028772,0.60955734,4633.9,4633.8,0.6485]
[1759759029282,0.38834,4633.2,4633.0,0.2672]
[1759759029484,0.38837,4632.9,4632.8,0.6485]
[1759759029780,0.38841,4632.4,4632.2,0.38842]
[1759759029983,0.38841,4632.4,4632.3,0.6485]
[1759759030182,0.219,4632.4,4632.3,0.38841]
[1759759030377,0.219,4632.4,4632.3,1.03691]
[1759759030577,3.9103,4632.8,4632.4,0.6485]
[1759759030886,0.3884,4632.6,4632.4,0.6485]
[1759759031084,0.219,4632.7,4632.4,0.6485]
[1759759031473,0.38839,4632.6,4632.5,0.6485]
[1759759031872,0.219,4632.7,4632.0,0.2672]
[1759759032080,0.38842,4632.2,4632.1,0.6485]
[1759759032280,0.219,4632.2,4631.9,0.38844]
[1759759032582,0.60743,4632.2,4632.0,1.03694]
[1759759032777,3.2078,4632.8,4632.6,0.6485]
[1759759033083,3.2078,4632.8,4632.7,0.6485]
[1759759033586,0.219,4632.8,4632.7,0.6485]
[1759759034173,3.2078,4633.3,4633.2,1.03684]
[1759759034380,0.219,4633.3,4633.2,1.03684]
[1759759034778,0.38831,4633.6,4633.4,0.38832]
[1759759034979,0.00227734,4633.9,4633.7,0.3883]
[1759759035289,0.38831,4633.6,4633.5,0.2672]
[1759759035484,0.38831,4633.6,4633.5,0.9157]
[1759759036080,3.4268,4633.8,4633.5,0.2672]
[1759759036379,3.2078,4633.8,4633.5,0.2672]
[1759759036581,3.5961,4633.8,4633.7,0.6485]
[1759759036778,3.8151,4633.8,4633.7,0.6485]
[1759759036983,0.38833,4633.4,4633.3,0.6485]
[1759759037187,0.60733,4633.4,4633.3,0.6485]
[1759759038583,0.38834,4633.2,4633.1,0.6508]
[1759759039183,0.219,4633.4,4633.1,0.6508]
[1759759039379,0.38833,4633.3,4633.1,0.6508]
[1759759039579,0.38833,4633.3,4632.6,3.2078]
[1759759039580,0.38838,4632.7,4632.6,3.2078]
[1759759039879,0.97098,4632.6,4631.8,0.76030411]
[1759759040084,0.38847,4631.7,4631.6,0.6508]
[1759759042889,3.2078,4637.6,4637.0,0.2614]
[1759759043073,3.42891738,4637.6,4637.0,0.26295654]
[1759759043278,0.6885,4637.5,4637.1,0.6508]
[1759759043482,3.42891738,4637.6,4637.0,0.00155654]
[1759759043785,0.00211738,4637.6,4637.2,0.38801]
[1759759044088,0.22111738,4637.6,4637.5,0.9122]
[1759759045189,0.22111738,4637.6,4637.5,0.6508]
[1759759045482,0.60909738,4637.6,4637.0,0.91375654]
[1759759045680,0.38801,4637.2,4637.0,0.65235654]
[1759759045981,0.9075,4637.1,4637.0,0.00155654]
[1759759046377,0.6885,4637.1,4637.0,0.00155654]
[1759759046684,5.9075,4637.1,4637.0,0.00155654]
[1759759046984,0.97011,4636.8,4635.8,0.6508]
[1759759047180,0.38811,4636.0,4635.6,0.6508]
[1759759047380,0.38812,4635.8,4635.6,0.6508]
[1759759047780,0.38814,4635.6,4635.5,0.6508]
[1759759048080,3.2078,4636.7,4635.6,0.6508]
[1759759048276,0.38809,4636.3,4635.7,0.6508]
[1759759048584,0.38803,4636.9,4636.2,0.6508]
[1759759048779,0.60705,4636.8,4636.2,1.03888]
[1759759048974,0.38805,4636.8,4636.3,0.6508]
[1759759049175,0.219,4637.0,4636.6,1.03885]
[1759759049484,0.38804,4636.9,4636.5,0.2614]
[1759759049786,0.219,4637.0,4636.6,0.6508]
[1759759050080,0.60703,4637.0,4636.5,0.64946]
[1759759050282,0.38804,4636.8,4636.6,0.6508]
[1759759050482,3.2078,4637.2,4636.1,3.2078]
[1759759050683,0.38805,4636.7,4636.5,0.2614]
[1759759050879,0.219,4636.6,4636.5,0.9122]
[1759759051479,0.38808,4636.4,4636.1,3.2078]
[1759759051885,0.219,4636.6,4636.1,3.2078]
[1759759052082,0.219,4636.6,4636.3,0.38807]
[1759759052284,3.2078,4637.2,4636.4,0.6508]
[1759759052584,0.38805,4636.7,4636.6,0.6508]
[1759759052886,0.38809,4636.3,4636.2,0.6508]
[1759759053082,0.60709,4636.3,4636.2,0.6508]
[1759759053291,0.38813,4635.8,4635.6,0.6508]
[1759759053587,0.38813,4635.7,4635.6,0.6508]
[1759759054385,0.6885,4635.6,4635.5,0.00185889]
[1759759054582,3.8963,4635.6,4635.5,0.00185889]
[1759759055081,3.2078,4635.6,4635.5,0.91405889]
[1759759055289,3.2078,4635.6,4635.5,1.30220889]
[1759759055888,3.2078,4635.6,4635.5,0.00185889]
[1759759056088,3.2078,4635.6,4635.5,0.66125889]
[1759759057279,3.2078,4635.6,4635.5,0.00185889]
[1759759057484,3.8766,4635.6,4635.5,0.00185889]
[1759759057986,3.2078,4635.6,4635.5,0.00185889]
[1759759058385,3.4268,4635.6,4635.5,0.00185889]
[1759759058589,3.2078,4635.6,4635.5,0.66125889]
[1759759058781,3.4268,4635.6,4635.5,0.66125889]
[1759759058980,0.219,4635.6,4635.5,0.66125889]
[1759759059486,0.38813,4635.7,4635.5,0.66125889]
[1759759059689,0.219,4635.6,4635.5,0.00185889]
[1759759060082,4.0956,4635.6,4635.5,0.00185889]
[1759759060288,6.94916541,4635.6,4635.5,0.00185889]
[1759759060683,0.97038,4635.5,4634.4,0.6594]
[1759759060886,0.97038,4635.5,4633.5,41.0616]
[1759759060887,0.38831,4633.7,4633.5,3.4694]
[1759759061088,0.60731,4633.6,4633.4,0.38832]
[1759759061290,0.38831,4633.6,4633.5,0.6594]
[1759759061493,0.60731,4633.6,4633.5,0.6594]
[1759759061789,0.22166876,4633.6,4633.5,0.66147564]
[1759759061990,0.00266876,4633.6,4633.5,0.92307564]
[1759759062196,0.97026,4636.1,4633.7,0.6594]
[1759759062197,0.219,4633.8,4633.7,0.6594]
[1759759062385,3.2078,4634.9,4634.1,0.6594]
[1759759062585,0.60721,4634.8,4634.5,0.6594]
[1759759062896,0.219,4634.7,4634.6,0.6594]
[1759759063093,3.2078,4634.9,4634.6,0.6594]
[1759759063299,0.00193871,4634.7,4634.6,1.04762]
[1759759063994,0.00193871,4634.7,4634.6,6.04762]
[1759759064197,3.2078,4636.2,4635.7,0.38813]
[1759759064403,3.2078,4636.2,4635.5,0.921]
[1759759064404,3.2078,4636.2,4636.0,0.6497]
[1759759064696,0.219,4636.1,4635.5,4.1288]
[1759759064897,0.219,4636.1,4635.6,0.6594]
[1759759065102,0.22138596,4636.1,4635.5,4.51694]
[1759759065404,0.38813,4635.8,4635.5,0.2616]
[1759759065602,0.22138596,4636.1,4635.5,0.2616]
[1759759065603,0.60714,4635.7,4635.5,0.6594]
[1759759065796,0.38817,4635.3,4635.1,41.4594]
[1759759065999,0.219,4635.2,4635.1,40.8]
[1759759066200,0.123,4635.2,4634.9,0.38819]
[1759759066401,3.2078,4635.7,4634.8,0.6594]
[1759759066402,0.22,4635.1,4634.8,0.6594]
[1759759066601,0.22,4635.1,4634.7,0.38821]
[1759759066898,0.22,4635.1,4635.0,0.6594]
[1759759067095,0.22,4635.1,4635.0,0.921]
[1759759067295,3.2078,4635.7,4635.6,0.6594]
[1759759067502,0.22,4635.7,4635.6,1.04754]
[1759759068205,0.22,4635.7,4635.6,0.6594]
[1759759068403,3.4278,4635.7,4635.0,4.144]
[1759759068707,0.38818,4635.2,4635.0,0.6746]
[1759759068906,0.22,4635.1,4635.0,0.6746]
[1759759069594,0.22,4635.1,4634.1,41.02]
[1759759069595,0.38819,4635.0,4634.8,1.0628]
[1759759069794,0.22,4635.1,4634.4,3.2078]
[1759759070106,0.38822,4634.7,4634.5,0.6746]
[1759759070306,0.22,4634.6,4633.9,3.2078]
[1759759070703,0.38827,4634.1,4634.0,0.6746]
[1759759071004,0.60827,4634.1,4634.0,0.6746]
[1759759071202,0.22,4634.1,4634.0,0.6746]
[1759759071402,0.22,4634.1,4634.0,0.9379]
[1759759071600,3.2078,4635.2,4634.8,0.38821]
[1759759071802,0.66131288,4635.1,4635.0,0.9379]
[1759759072009,3.59598,4635.2,4635.0,0.9379]
[1759759072304,0.22,4635.1,4634.8,0.3882]
[1759759072607,3.2078,4635.2,4635.1,0.6746]
[1759759073108,3.4278,4635.2,4634.5,0.9379]
[1759759073407,0.38819,4635.0,4634.6,0.38822]
[1759759073595,0.3882,4634.9,4634.7,0.6746]
[1759759073799,0.22,4634.8,4634.7,0.6746]
[1759759074004,0.3882,4634.9,4634.5,0.38823]
[1759759074306,0.38823,4634.5,4634.2,3.2078]
[1759759074505,0.22,4634.8,4634.2,3.59605]
[1759759074707,3.2078,4635.2,4634.5,0.38823]
[1759759074901,0.44153753,4635.1,4634.9,0.6746]
[1759759075103,3.2078,4635.8,4635.2,0.6746]
[1759759075301,0.66163609,4635.7,4635.6,0.6746]
[1759759075501,0.221,4635.7,4635.6,0.6746]
[1759759075700,0.221,4635.7,4635.5,3.85925]
[1759759075701,3.2078,4636.6,4636.5,0.9379]
[1759759075906,3.4288,4636.6,4636.5,0.9379]
[1759759076305,3.4288,4636.6,4636.0,0.2633]
[1759759076614,3.43057974,4636.6,4635.5,3.4711]
[1759759076907,0.38816,4635.4,4635.2,0.6746]
[1759759077103,0.221,4635.3,4635.2,0.6746]
[1759759077301,0.38818,4635.2,4635.0,4.1457]
[1759759077499,8.08077674,4635.3,4634.6,0.6746]
[1759759077703,0.38823,4634.5,4634.4,3.2078]
[1759759078004,0.38823,4634.5,4634.0,0.9379]
[1759759078005,0.38826,4634.1,4634.0,0.9379]
[1759759078519,0.60926,4634.1,4634.0,0.9379]
[1759759078813,0.38831,4633.6,4633.5,0.00207564]
[1759759079007,0.61031,4633.6,4633.5,4.14777564]
[1759759079206,0.38827,4634.1,4634.0,0.2633]
[1759759079419,0.222,4634.1,4634.0,0.9379]
[1759759079609,0.222,4634.1,4634.0,4.1457]
[1759759080013,0.38831,4633.6,4633.5,0.00207564]
[1759759080212,37.0958,4633.6,4632.5,0.2633]
[1759759080411,0.38844,4632.0,4631.9,3.2078]
[1759759080610,0.38843,4632.2,4631.5,0.9379]
[1759759080911,3.18208425,4632.8,4632.5,0.2633]
[1759759081111,0.222,4632.7,4632.6,1.06299]
[1759759081311,0.00217163,4632.7,4632.6,4.27301506]
[1759759081610,3.2078,4634.3,4632.6,8.88462506]
[1759759081817,0.222,4634.2,4633.5,0.2633]
[1759759082019,0.3883,4633.7,4633.5,0.2633]
[1759759082314,3.2078,4634.3,4634.1,0.6746]
[1759759082510,0.38826,4634.1,4634.0,0.9379]
[1759759082710,0.39106039,4634.1,4634.0,0.9379]
[1759759083714,0.22480039,4634.1,4634.0,0.9379]
[1759759084212,0.00280039,4634.1,4634.0,0.9379]
[1759759084516,3.2078,4635.2,4634.6,0.6746]
[1759759084708,0.065,4635.1,4634.5,0.2633]
[1759759084906,2.91604484,4635.1,4634.5,0.2633]
[1759759085109,0.38822,4634.7,4634.5,0.2633]
[1759759085309,0.38826,4634.1,4634.0,0.9379]
[1759759085509,0.61026,4634.1,4634.0,0.9379]
[1759759086313,0.222,4634.1,4634.0,0.9379]
[1759759087618,0.0015186,4634.7,4634.5,0.2633]
[1759759087816,0.0015186,4634.7,4634.6,0.6746]
[1759759088016,0.2235186,4634.7,4634.6,0.6746]
[1759759088220,0.6117286,4634.7,4634.6,0.6746]
[1759759088417,1.05651538,4634.7,4634.6,0.6746]
[1759759088614,0.38826,4634.1,4634.0,0.9379]
[1759759088814,0.61026,4634.1,4634.0,0.9379]
[1759759089023,0.222,4634.1,4634.0,0.9379]
[1759759089623,3.090682,4634.1,4633.5,0.9379]
[1759759089916,0.38831,4633.7,4633.6,0.6746]
[1759759091111,8.15542884,4633.7,4633.5,0.2633]
[1759759091316,0.38835,4633.1,4633.0,0.2633]
[1759759091524,0.61035,4633.1,4633.0,0.2633]
[1759759091720,0.38838,4632.7,4632.2,0.38842]
[1759759092124,0.222,4633.1,4632.4,0.38841]
[1759759092322,0.38837,4632.8,4632.2,0.38842]
[1759759092519,0.38837,4632.8,4632.1,3.2078]
[1759759092921,2.87904135,4632.7,4632.1,3.2078]
[1759759093519,2.87904135,4632.7,4632.0,0.2633]
[1759759093722,2.87904135,4632.7,4631.9,0.6746]
[1759759093723,7.87904135,4632.7,4631.9,0.6746]
[1759759094028,8.10104135,4632.7,4631.9,0.6746]
[1759759094319,3.2049681,4632.7,4632.6,0.67682506]
[1759759094626,0.38838,4632.8,4632.7,0.6746]
[1759759094827,0.61038,4632.8,4632.7,0.6746]
[1759759095021,1.05488766,4632.8,4632.7,0.6746]
[1759759095221,0.61038,4632.8,4632.7,0.6746]
[1759759095525,3.2078,4633.5,4632.8,0.6746]
[1759759095716,3.2078,4633.5,4633.0,0.2633]
[1759759095915,0.222,4633.4,4633.2,0.38834]
[1759759096120,0.222,4633.4,4633.1,0.6746]
[1759759096417,0.222,4633.4,4633.3,0.6746]
[1759759097720,0.222,4633.4,4633.2,0.38834]
[1759759097721,0.1186,4634.9,4633.6,0.6746]
[1759759098025,3.223219,4634.2,4634.1,0.6831]
[1759759098222,0.61026,4634.2,4634.1,0.6831]
[1759759098619,1.14282,4635.4,4634.1,0.6831]
[1759759098814,0.97041,4635.4,4634.5,0.2893]
[1759759099016,0.3897386,4634.7,4634.6,0.6831]
[1759759099223,0.6117386,4634.7,4634.6,0.6831]
[1759759099423,0.2235186,4634.7,4634.6,0.6831]
[1759759099826,0.0015186,4634.7,4634.6,0.6831]
[1759759100023,0.2235186,4634.7,4634.6,0.6831]
[1759759100618,0.97018,4636.5,4635.1,0.6831]
[1759759100814,0.222,4635.4,4635.1,0.6831]
[1759759101726,3.20951493,4635.2,4635.1,0.6831]
[1759759102022,0.00171493,4635.2,4635.1,0.6831]
[1759759102416,0.22371493,4635.2,4635.1,0.6831]
[1759759104125,0.22371493,4635.2,4635.1,3.8909]
[1759759104622,0.00171493,4635.2,4635.1,3.8909]
[1759759106024,0.22371493,4635.2,4635.1,3.8909]
[1759759107029,0.61188493,4635.2,4635.1,3.8909]
[1759759107230,0.22371493,4635.2,4635.1,3.8909]
[1759759108821,0.22371493,4635.2,4635.1,0.6831]
[1759759109023,0.22371493,4635.2,4634.4,0.38824]
[1759759109024,0.38821,4634.7,4634.1,3.2078]
[1759759109327,0.97054,4634.8,4634.2,0.6831]
[1759759109524,0.97054,4634.8,4634.1,3.2078]
[1759759109525,0.222,4634.7,4634.1,3.2078]
[1759759109724,0.222,4634.7,4634.2,0.6831]
[1759759109924,0.00171493,4635.2,4635.1,0.6831]
[1759759110234,0.00171493,4635.2,4635.1,3.8909]
[1759759111323,0.00171493,4635.2,4635.1,4.27908]
[1759759112326,0.97008,4637.0,4635.1,4.27908]
[1759759112327,0.1741,4637.4,4636.1,1.07119]
[1759759112531,0.38807,4636.4,4636.3,0.6831]
[1759759112728,0.61007,4636.4,4636.3,0.6831]
[1759759113426,0.22450593,4636.4,4636.3,0.68540014]
[1759759113731,0.00250593,4636.4,4636.3,0.68540014]
[1759759113934,0.22450593,4636.4,4636.3,3.89320014]
[1759759114928,0.00250593,4636.4,4636.3,3.89320014]
[1759759115528,3.2078,4637.6,4637.5,0.2626]
[1759759115831,3.81777,4637.6,4637.5,0.9548]
[1759759116621,3.82051661,4637.6,4637.5,0.9548]
[1759759117028,0.39071661,4637.6,4637.5,0.9548]
[1759759117335,0.61271661,4637.6,4637.5,0.9548]
[1759759118332,0.22474661,4637.6,4637.5,0.9548]
[1759759119433,0.00274661,4637.6,4637.5,4.1626]
[1759759119635,0.22474661,4637.6,4637.5,4.1626]
[1759759121431,0.22474661,4637.6,4637.5,0.9548]
[1759759121727,3.00396963,4637.6,4637.5,0.9548]
[1759759121930,0.22474661,4637.6,4637.5,0.9548]
[1759759122735,0.00274661,4637.6,4637.5,0.9548]
[1759759122941,0.22474661,4637.6,4637.5,4.55058]
[1759759123242,0.00274661,4637.6,4637.5,4.55058]
[1759759123426,0.00274661,4637.6,4637.5,4.1626]
[1759759123632,0.22374661,4637.6,4637.5,4.1626]
[1759759123828,0.00274661,4637.6,4637.5,9.1626]
[1759759124040,3.2078,4639.1,4638.6,0.6922]
[1759759124338,0.38788,4638.7,4638.6,0.6922]
[1759759124538,0.60888,4638.7,4638.6,0.6922]
[1759759125039,0.61130824,4638.7,4638.6,0.6922]
[1759759125238,0.61130824,4638.7,4638.5,0.2626]
[1759759125441,3.2078,4638.6,4638.5,0.9548]
[1759759125642,3.4288,4638.6,4638.5,0.9548]
[1759759125840,0.38793,4638.1,4638.0,0.9548]
[1759759126029,3.59573,4638.1,4638.0,0.6922]
[1759759126335,0.38801,4637.2,4637.1,0.6922]
[1759759126529,0.60901,4637.2,4637.1,0.6922]
[1759759127344,0.221,4637.2,4637.1,0.6922]
[1759759127839,0.221,4637.2,4637.1,0.38801]
[1759759128039,0.221,4637.3,4637.1,0.38801]
[1759759128437,0.609,4637.3,4637.2,0.6556]
[1759759129443,3.2078,4638.2,4637.2,0.6556]
[1759759129646,3.2078,4638.2,4637.5,0.2865]
[1759759129647,0.38797,4637.7,4637.5,0.2865]
[1759759129944,0.38797,4637.7,4637.6,0.6556]
[1759759130147,0.60897,4637.7,4637.6,0.6556]
[1759759130442,1.05444884,4637.7,4637.6,0.6556]
[1759759130637,0.66647884,4637.7,4637.6,0.6556]
[1759759130834,0.221,4637.7,4637.6,0.6556]
[1759759132142,0.6665313,4637.7,4637.6,0.6556]
[1759759132344,3.8743313,4637.7,4637.6,0.6556]
[1759759135043,3.2078,4638.8,4637.6,3.8634]
[1759759135243,0.38796,4637.8,4637.7,0.6556]
[1759759136147,3.23023478,4637.8,4637.7,0.6556]
[1759759137146,0.38797,4637.6,4637.5,0.2865]
[1759759137447,0.38801,4637.1,4637.0,0.9182]
[1759759137647,0.38805,4636.7,4636.6,3.8634]
[1759759137846,0.38807,4636.4,4636.3,0.65790014]
[1759759138746,0.60907,4636.4,4636.3,0.65790014]
[1759759139046,0.66760507,4636.4,4636.3,0.65790014]
[1759759139245,3.2078,4637.1,4637.0,0.2865]
[1759759139459,3.2078,4637.1,4637.0,0.9421]
[1759759139460,4.26339265,4637.1,4637.0,0.9421]
[1759759139642,3.83470263,4637.1,4637.0,0.9421]
[1759759140240,0.44658265,4637.1,4637.0,0.9421]
[1759759140439,0.66758265,4637.1,4637.0,0.9421]
[1759759140750,0.66758265,4637.1,4636.5,3.4943]
[1759759140751,0.38806,4636.6,4636.5,0.9421]
[1759759140947,0.221,4636.6,4636.5,0.9421]
[1759759141343,3.2078,4637.5,4637.2,0.6556]
[1759759141538,0.66805043,4637.4,4637.3,0.6556]
[1759759141745,0.66805043,4637.4,4637.3,1.0436]
[1759759142046,3.59569,4638.6,4638.5,0.2865]
[1759759142249,3.65497948,4638.6,4638.5,0.9421]
[1759759142447,0.66817948,4638.6,4638.5,0.9421]
[1759759142838,4.7336641,4639.6,4638.6,0.6556]
[1759759142839,3.2078,4639.6,4638.6,0.6556]
[1759759143040,0.38784,4639.2,4639.0,0.2865]
[1759759143239,0.221,4639.5,4639.0,0.2865]
[1759759143442,3.2078,4639.6,4639.5,0.9421]
[1759759143644,3.4288,4639.6,4639.5,0.9421]
[1759759143843,3.43149287,4639.6,4639.5,0.9421]
[1759759144041,0.00269287,4639.6,4639.5,0.9421]
[1759759144246,0.221,4639.7,4639.6,0.6556]
[1759759144450,0.221,4639.8,4639.7,0.6556]
[1759759145146,0.22377005,4639.8,4639.7,0.00278965]
[1759759145347,0.61156005,4639.8,4639.7,0.65838965]
[1759759145940,0.22377005,4639.8,4639.7,0.65838965]
[1759759147344,0.61156005,4639.8,4639.7,0.65838965]
[1759759147951,2.75646077,4639.8,4639.7,0.65838965]
[1759759148150,0.22377005,4639.8,4639.7,0.65838965]
[1759759148947,0.00277005,4639.8,4639.7,0.65838965]
[1759759149142,0.22377005,4639.8,4639.7,0.65838965]
[1759759149347,2.96495223,4639.8,4639.7,0.65838965]
[1759759150152,0.22377005,4639.8,4639.7,0.65838965]
[1759759151749,2.79185545,4639.8,4639.7,0.65838965]
[1759759152052,0.61156005,4639.8,4639.7,0.65838965]
[1759759152350,0.22377005,4639.8,4639.7,0.65838965]
[1759759152550,0.00277005,4639.8,4639.7,0.65838965]
[1759759152946,0.39056005,4639.8,4639.7,0.65838965]
[1759759153847,0.61156005,4639.8,4639.7,0.65838965]
[1759759154249,0.22377005,4639.8,4639.7,0.65838965]
[1759759154448,0.00277005,4639.8,4639.7,0.65838965]
[1759759154652,1.11552345,4640.6,4640.5,0.2865]
[1759759154954,1.56030391,4640.6,4640.5,0.9421]
[1759759155148,1.39358391,4640.6,4640.5,0.9421]
[1759759155648,0.73042547,4640.6,4640.5,0.9421]
[1759759155849,3.2078,4641.5,4641.0,0.2865]
[1759759156045,0.38764,4641.6,4641.5,0.9421]
[1759759156249,0.38768,4641.1,4641.0,0.2865]
[1759759156451,0.60768,4641.1,4641.0,0.6556]
[1759759156849,0.22182238,4641.1,4641.0,0.6556]
[1759759157050,0.00182238,4641.1,4641.0,0.9421]
[1759759157648,0.22282238,4641.1,4641.0,0.9421]
[1759759157849,0.00182238,4641.1,4641.0,0.9421]
[1759759158050,0.22282238,4641.1,4641.0,0.9421]
[1759759159249,0.22282238,4641.1,4640.0,0.9936]
[1759759159250,0.38776,4640.1,4640.0,0.9936]
[1759759159455,2.7932918,4641.1,4640.1,0.7071]
[1759759159657,1.65874,4640.5,4639.8,0.7071]
[1759759159857,1.65874,4640.5,4639.7,0.00278965]
[1759759159858,0.38778,4639.9,4639.7,0.70988965]
[1759759160156,0.22,4639.8,4639.7,0.70988965]
[1759759160356,0.38778,4640.0,4639.8,0.7071]
[1759759160652,0.97103238,4641.1,4640.1,0.7071]
[1759759160857,0.38775,4640.3,4640.1,0.7071]